fUST/lending_fUST_20251107
["ID","MTS","AMOUNT","RATE_DAILY","PERIOD"]
[393323651,1762471844339,-500.0,0.0001452,2]
[393323653,1762471844348,-500.0,0.0001452,2]
[393323667,1762471844450,-54803.70280961,0.00014521,2]
[393323927,1762471846960,-500.0,0.00014515,2]
[393323928,1762471846969,-500.0,0.00014515,2]
[393323929,1762471846978,-500.0,0.00014515,2]
[393323930,1762471846987,-5196.29719039,0.00014521,2]
[393323931,1762471846996,-1095.87837672,0.00014653,2]
[393323932,1762471847006,-2408.69826469,0.00014793,2]
[393323964,1762471868739,3261.9707715,0.00014172,2]
[393323965,1762471883131,150.0,0.00026594,30]
[393323966,1762471883530,38.408,0.00029011,30]
[393323968,1762471906293,153.95800204,0.00025872,30]
[393323969,1762471942449,46.0,0.00035,120]
[393323970,1762471942470,108.0,0.00035,120]
[393323971,1762471962614,150.0,0.00026337,30]
[393324020,1762472010716,92.0,0.0003569,120]
[393324021,1762472010737,108.0,0.0003569,120]
[393324022,1762472024781,1723.37005785,0.00014413,2]
[393324023,1762472035383,92.0,0.00035729,120]
[393324024,1762472035405,108.0,0.00035729,120]
[393324025,1762472035923,92.0,0.00032877,120]
[393324026,1762472164360,-906.4778728,0.00032877,120]
[393324027,1762472164391,-33.0442544,0.000369,120]
[393324028,1762472164492,-120.9557456,0.000369,120]
[393324029,1762472164526,-149.73418086,0.000372,120]
[393324030,1762472164552,-161.5606258,0.000372,120]
[393324031,1762472164578,-171.34017661,0.000372,120]
[393324032,1762472164603,-192.73808427,0.000372,120]
[393324033,1762472164629,-364.48409886,0.000372,120]
[393324034,1762472164707,-1196.01971695,0.000372,120]
[393324035,1762472164733,-177.42060291,0.000372,120]
[393324036,1762472164758,-245.21260673,0.000372,120]
[393324037,1762472164793,-78.50228514,0.000372,120]
[393324038,1762472165266,-70.87430917,0.000372,120]
[393324039,1762472206688,193.39758109,0.0001828,3]
[393324041,1762472263813,-33.25138166,0.000372,120]
[393324042,1762472263842,-176.77246861,0.000372,120]
[393324043,1762472263869,-160.05044476,0.000372,120]
[393324044,1762472263896,-176.25505289,0.000372,120]
[393324045,1762472263924,-157.02883248,0.000372,120]
[393324046,1762472285354,1507.94880061,0.0001441,2]
[393324047,1762472317509,10000.0,0.00032877,120]
[393324048,1762472356535,10000.0,0.00032877,120]
[393324049,1762472451902,-6.40067325,0.000372,120]
[393324050,1762472451937,-171.34017662,0.000372,120]
[393324051,1762472451970,-202.37498849,0.000372,120]
[393324052,1762472452274,-134.41474253,0.000372,120]
[393324053,1762472455297,10000.0,0.00032877,120]
[393324054,1762472471583,10000.0,0.00032877,120]
[393324056,1762472541020,1319.45520056,0.00014408,2]
[393324058,1762472660588,657.52702604,0.0001442,2]
[393324059,1762472676737,517.02,0.00037151,20]
[393324061,1762472801321,1154.52330049,0.00014406,2]
[393324063,1762473001003,526.02162084,0.00014415,2]
[393324140,1762473032690,-300.0,0.00014503,2]
[393324142,1762473032700,-300.0,0.00014503,2]
[393324144,1762473032709,-300.0,0.00014503,2]
[393324146,1762473032718,-300.0,0.00014503,2]
[393324148,1762473032727,-300.0,0.00014503,2]
[393324150,1762473032737,-1200.0,0.00014503,2]
[393324152,1762473032746,-150.0,0.00014506,2]
[393324154,1762473032755,-433.46703428,0.00014507,2]
[393324156,1762473032764,-500.0,0.00014507,2]
[393324158,1762473032774,-500.0,0.00014507,2]
[393324160,1762473032783,-521.12943612,0.00014507,2]
[393324162,1762473032792,-198.0,0.00014507,2]
[393324164,1762473032802,-151.0,0.00014507,2]
[393324166,1762473032811,-500.0,0.00014508,2]
[393324168,1762473032820,-151.0,0.00014508,2]
[393324170,1762473032829,-151.0,0.00014508,2]
[393324172,1762473032838,-151.0,0.00014508,2]
[393324174,1762473032848,-151.0,0.00014508,2]
[393324176,1762473032857,-235.71153375,0.00014508,2]
[393324177,1762473032866,-500.0,0.00014513,2]
[393324179,1762473032875,-500.0,0.00014515,2]
[393324181,1762473032884,-500.0,0.00014515,2]
[393324183,1762473032894,-500.0,0.00014515,2]
[393324185,1762473032903,-500.0,0.00014515,2]
[393324187,1762473032912,-500.0,0.00014515,2]
[393324189,1762473032922,-500.0,0.00014515,2]
[393324192,1762473032932,-500.0,0.00014515,2]
[393324193,1762473032941,-500.0,0.00014515,2]
[393324195,1762473032950,-500.0,0.00014515,2]
[393324197,1762473032964,-500.0,0.00014515,2]
[393324199,1762473032974,-500.0,0.00014515,2]
[393324201,1762473032985,-500.0,0.00014515,2]
[393324203,1762473032994,-1048.90500001,0.00014515,2]
[393324205,1762473033003,-500.0,0.00014515,2]
[393324207,1762473033012,-277.7007064,0.00014515,2]
[393324209,1762473033022,-331.14875729,0.00014515,2]
[393324211,1762473033031,-500.0,0.0001452,2]
[393324213,1762473033040,-500.0,0.0001452,2]
[393324215,1762473033050,-500.0,0.0001452,2]
[393324217,1762473033059,-500.0,0.0001452,2]
[393324219,1762473033068,-500.0,0.0001452,2]
[393324221,1762473033077,-500.0,0.0001452,2]
[393324223,1762473033086,-500.0,0.00014563,2]
[393324225,1762473033096,-198.0,0.00014563,2]
[393324227,1762473033104,-151.0,0.00014563,2]
[393324229,1762473033114,-151.0,0.00014563,2]
[393324231,1762473033123,-198.0,0.00014563,2]
[393324232,1762473033132,-364.64977058,0.00014618,2]
[393324234,1762473033144,-151.0,0.00014618,2]
[393324236,1762473033153,-248.08703416,0.00014618,2]
[393324238,1762473033162,-1000.0,0.00014634,2]
[393324241,1762473033173,-1000.0,0.00014634,2]
[393324243,1762473033182,-1000.0,0.00014634,2]
[393324245,1762473033191,-1000.0,0.00014634,2]
[393324246,1762473033200,-1000.0,0.00014634,2]
[393324248,1762473033209,-1000.0,0.00014634,2]
[393324250,1762473033218,-1000.0,0.00014634,2]
[393324252,1762473033227,-1000.0,0.00014634,2]
[393324254,1762473033236,-1000.0,0.00014634,2]
[393324256,1762473033245,-1000.0,0.00014634,2]
[393324258,1762473033255,-240.29747099,0.00014634,2]
[393324260,1762473033267,-515.80489828,0.00014634,2]
[393324262,1762473033280,-243.89763073,0.00014634,2]
[393324263,1762473033289,-784.58167169,0.00014634,2]
[393324264,1762473033298,-183.304,0.00014672,2]
[393324265,1762473033307,-500.0,0.00014787,2]
[393324266,1762473033316,-500.0,0.00014888,2]
[393324267,1762473033324,-500.0,0.00014888,2]
[393324268,1762473033334,-7950.31847643,0.00015174,2]
[393324269,1762473033343,-500.0,0.00015362,2]
[393324270,1762473033352,-500.0,0.00015362,2]
[393324271,1762473033362,-500.0,0.00015362,2]
[393324272,1762473033371,-500.0,0.00015362,2]
[393324273,1762473033380,-500.0,0.00015362,2]
[393324274,1762473033389,-413.45339151,0.00015362,2]
[393324275,1762473033398,-500.0,0.00015362,2]
[393324276,1762473033407,-532.02850704,0.00015362,2]
[393324277,1762473033416,-209.85,0.00015536,2]
[393324278,1762473033424,-160.0,0.00015607,2]
[393324279,1762473033433,-300.0,0.00015881,2]
[393324280,1762473033443,-300.0,0.00015881,2]
[393324281,1762473033452,-420.0,0.00015881,2]
[393324282,1762473033461,-2270.076504,0.00015921,2]
[393324284,1762473033470,-497.0,0.00015954,2]
[393324286,1762473033479,-177.0,0.00016506,2]
[393324288,1762473033488,-762.53550328,0.00016664,2]
[393324290,1762473033497,-201.38465441,0.00016681,2]
[393324291,1762473033506,-733.87474969,0.00016854,2]
[393324293,1762473033515,-1320.97454944,0.00017026,2]
[393324295,1762473033524,-331.16031576,0.00017026,2]
[393324297,1762473033533,-201.58603906,0.00018265,2]
[393324298,1762473033542,-204.0,0.00018506,2]
[393324300,1762473033551,-985.0,0.00018579,2]
[393324302,1762473033567,-412.0,0.00018579,2]
[393324304,1762473033576,-526.02162082,0.00020036,2]
[393324305,1762473033586,-741.695045,0.00020187,2]
[393324306,1762473033595,-189.0,0.00020506,2]
[393324307,1762473033604,-151.0,0.00020548,7]
[393324308,1762473033613,-151.0,0.00020548,7]
[393324309,1762473033622,-151.0,0.00020548,7]
[393324310,1762473033631,-151.0,0.00020548,7]
[393324311,1762473033641,-151.0,0.00020548,7]
[393324312,1762473033651,-151.0,0.00020548,7]
[393324313,1762473033659,-151.0,0.00020548,7]
[393324314,1762473033668,-151.0,0.00020548,7]
[393324315,1762473033677,-151.0,0.00020548,7]
[393324316,1762473033686,-151.0,0.00020548,7]
[393324317,1762473033695,-295.684744,0.00020548,7]
[393324318,1762473033705,-500.0,0.000206,2]
[393324319,1762473033715,-500.0,0.000206,2]
[393324320,1762473033724,-762.53550328,0.0002087,3]
[393324321,1762473033733,-848.76770091,0.00021,10]
[393324322,1762473033840,-151.0,0.000211,4]
[393324323,1762473033850,-1000.0,0.00021148,2]
[393324324,1762473033859,-500.0,0.000214,2]
[393324325,1762473033869,-412.0,0.00021579,2]
[393324326,1762473033878,-151.0,0.000216,3]
[393324327,1762473033887,-500.0,0.00021696,2]
[393324328,1762473033896,-151.0,0.00022,10]
[393324329,1762473033906,-163.55,0.000221,7]
[393324330,1762473033916,-1024.68599238,0.000225,2]
[393324331,1762473033925,-151.0,0.000226,6]
[393324332,1762473033935,-300.0,0.00023,2]
[393324333,1762473033944,-5344.98379042,0.00023,2]
[393324334,1762473033960,-151.0,0.00023,6]
[393324335,1762473033975,-235.0,0.0002328,2]
[393324336,1762473033984,-235.0,0.00023327,2]
[393324337,1762473033993,-235.0,0.00023592,2]
[393324338,1762473034002,-151.0,0.000236,7]
[393324339,1762473034012,-235.0,0.00023776,2]
[393324340,1762473034021,-235.0,0.00023898,2]
[393324341,1762473034030,-151.0,0.000239,9]
[393324342,1762473034039,-235.0,0.00023968,2]
[393324343,1762473034049,-235.0,0.00024161,2]
[393324344,1762473034059,-235.0,0.00024359,2]
[393324345,1762473034068,-235.0,0.00024379,2]
[393324346,1762473034078,-412.0,0.00024579,2]
[393324347,1762473034087,-235.0,0.00024586,2]
[393324348,1762473034096,-235.0,0.00024634,2]
[393324349,1762473034107,-1533.06752046,0.0002465,2]
[393324545,1762473046993,-500.0,0.00014503,2]
[393324546,1762473047003,-500.0,0.00014503,2]
[393324547,1762473047013,-500.0,0.00014503,2]
[393324548,1762473047022,-500.0,0.00014503,2]
[393324549,1762473047032,-24.0,0.00014503,2]
[393324550,1762473066843,1010.20788792,0.00014403,2]
[393324551,1762473194385,171.4,0.00014355,2]
[393324552,1762473216680,171.4,0.00014355,2]
[393324553,1762473224448,171.4,0.00014355,2]
[393324554,1762473233047,171.4,0.00014355,2]
[393324555,1762473235436,150.0,0.000144,2]
[393324556,1762473240792,171.4,0.00014355,2]
[393324557,1762473245699,150.0,0.000144,2]
[393324558,1762473248792,171.4,0.00014355,2]
[393324559,1762473256004,150.0,0.000144,2]
[393324560,1762473256666,171.4,0.00014355,2]
[393324561,1762473264863,171.4,0.00014355,2]
[393324562,1762473266922,150.0,0.000144,2]
[393324563,1762473272152,151.0,0.0003715,30]
[393324564,1762473272714,171.4,0.00014355,2]
[393324565,1762473272825,151.0,0.0003715,120]
[393324566,1762473273462,151.0,0.0003715,50]
[393324567,1762473274104,151.0,0.0003715,60]
[393324568,1762473274791,151.0,0.0003715,80]
[393324569,1762473275390,151.0,0.0003715,120]
[393324570,1762473276005,151.0,0.0003715,30]
[393324571,1762473276743,151.0,0.0003715,120]
[393324572,1762473277402,151.0,0.0003715,60]
[393324573,1762473278540,151.0,0.0003715,60]
[393324574,1762473280921,171.4,0.00014355,2]
[393324575,1762473281388,1040.12538196,0.000144,2]
[393324576,1762473295921,150.0,0.000144,2]
[393324577,1762473296129,171.4,0.00014355,2]
[393324578,1762473303969,171.4,0.00014355,2]
[393324579,1762473306852,150.0,0.000144,2]
[393324580,1762473317064,1045.77197839,0.00014401,2]
[393324581,1762473319147,1671.4,0.00014355,2]
[393324582,1762473326942,1671.4,0.00014355,2]
[393324583,1762473342309,1671.4,0.00014355,2]
[393324584,1762473350105,576.94007144,0.00014355,2]
[393324585,1762473365377,971.6,0.00014355,2]
[393324586,1762473567102,9550.50315983,0.00013699,2]
[393324587,1762473567132,4508.11157857,0.00013699,2]
[393324588,1762473567582,915.0504811,0.00014399,2]
[393324589,1762473573695,169.0820082,6.907e-05,2]
[393324590,1762473601586,245.976221,0.00013699,2]
[393324591,1762473613020,5000.0,0.00037148,73]
[393324592,1762473615370,2083.75,0.00037148,60]
[393324593,1762473615840,2083.75,0.00037148,60]
[393324594,1762473616106,2083.75,0.00037148,60]
[393324595,1762473616490,2083.75,0.00037148,60]
[393324596,1762473616883,2083.75,0.00037148,60]
[393324597,1762473617286,2083.75,0.00037148,60]
[393324598,1762473617704,2083.75,0.00037148,60]
[393324599,1762473618098,2083.75,0.00037148,60]
[393324600,1762473618583,2083.75,0.00037148,60]
[393324601,1762473618956,2083.75,0.00037148,60]
[393324602,1762473619351,2083.75,0.00037148,60]
[393324603,1762473619718,2083.75,0.00037148,60]
[393324604,1762473620261,2083.75,0.00037148,60]
[393324605,1762473620641,2083.75,0.00037148,60]
[393324606,1762473621007,2083.75,0.00037148,60]
[393324607,1762473621433,2083.75,0.00037148,120]
[393324608,1762473621822,2083.75,0.00037148,120]
[393324609,1762473622188,2083.75,0.00037148,120]
[393324610,1762473622566,2083.75,0.00037148,120]
[393324611,1762473622954,2083.75,0.00037148,120]
[393324612,1762473623438,2083.75,0.00037148,120]
[393324613,1762473623834,2083.75,0.00037148,120]
[393324614,1762473624251,2083.75,0.00037148,120]
[393324615,1762473624644,2083.75,0.00037148,120]
[393324617,1762473818614,800.66917098,0.00014397,2]
[393324618,1762473819724,712.23536786,0.00014396,2]
[393324619,1762473863519,689.647143,0.00013699,2]
[393324620,1762473863603,300.0,0.00014351,2]
[393324622,1762473886902,300.0,0.00014351,2]
[393324623,1762473909628,300.0,0.0001435,2]
[393324624,1762473931958,1500.0,0.0001435,2]
[393324625,1762473954494,1500.0,0.0001435,2]
[393324626,1762473976788,921.35392001,0.0001435,2]
[393324627,1762474022448,300.0,0.00014494,2]
[393324680,1762474088894,915.83511201,0.00014395,2]
[393324681,1762474182497,4550.7155594,0.00013541,2]
[393324682,1762474209297,1200.0,0.00014493,2]
[393324683,1762474215588,563.430578,0.00032,120]
[393324726,1762474232690,-463.66376798,0.00014494,2]
[393324732,1762474232741,-36.33623202,0.00014494,2]
[393324734,1762474232751,-500.0,0.00014494,2]
[393324737,1762474232762,-500.0,0.00014494,2]
[393324738,1762474232772,-369.17285743,0.00014494,2]
[393324741,1762474232781,-500.0,0.00014494,2]
[393324743,1762474232790,-500.0,0.00014494,2]
[393324746,1762474232799,-500.0,0.00014494,2]
[393324748,1762474232808,-500.0,0.00014494,2]
[393324751,1762474232818,-500.0,0.00014494,2]
[393324754,1762474232827,-500.0,0.00014494,2]
[393324756,1762474232837,-500.0,0.00014494,2]
[393324758,1762474232847,-500.0,0.00014494,2]
[393324760,1762474232857,-500.0,0.00014494,2]
[393324762,1762474232867,-500.0,0.00014494,2]
[393324764,1762474232877,-500.0,0.00014494,2]
[393324766,1762474232886,-500.0,0.00014494,2]
[393324768,1762474232895,-500.0,0.00014494,2]
[393324769,1762474232904,-500.0,0.00014494,2]
[393324770,1762474232913,-500.0,0.00014494,2]
[393324772,1762474232923,-500.0,0.00014494,2]
[393324773,1762474232935,-500.0,0.00014494,2]
[393324775,1762474232944,-500.0,0.00014494,2]
[393324776,1762474232953,-443.43509921,0.00014494,2]
[393324777,1762474232965,-56.56490079,0.00014494,2]
[393324778,1762474232975,-232.55501129,0.00014494,2]
[393324798,1762474238732,-267.44498871,0.00014494,2]
[393324799,1762474238741,-500.0,0.00014494,2]
[393324800,1762474238751,-389.44330745,0.00014494,2]
[393324925,1762474243790,-253.04688047,0.00014494,2]
[393324926,1762474243799,-128.26580884,0.00014494,2]
[393324932,1762474273617,988.21947999,0.00014349,2]
[393324933,1762474281643,3108.42463827,0.00014349,2]
[393324934,1762474352810,268.84920203,0.00014493,2]
[393324935,1762474354535,878.94,0.000144,2]
[393324938,1762474507252,250.0,0.00014493,2]
[393324939,1762474609262,801.355723,0.00014394,2]
[393324948,1762474692011,215.85310535,0.00025205,14]
[393325002,1762474951272,400.27197727,0.00037214,60]
[393325007,1762475014718,306579.96,0.00037214,20]
[393325009,1762475149735,701.18625759,0.00014394,2]
[393325219,1762475360929,30000.0,0.00014349,2]
[393325223,1762475369030,31707.73713192,0.00014349,2]
[393325259,1762475429753,500.0,0.00014493,2]
[393325260,1762475429789,500.0,0.00014493,2]
[393325261,1762475429825,500.0,0.00014493,2]
[393325262,1762475429861,500.0,0.00014493,2]
[393325263,1762475429896,500.0,0.00014493,2]
[393325264,1762475429936,500.0,0.00014493,2]
[393325265,1762475429969,500.0,0.00014493,2]
[393325266,1762475430004,500.0,0.00014493,2]
[393325267,1762475430053,500.0,0.00014493,2]
[393325268,1762475430088,500.0,0.00014493,2]
[393325269,1762475430123,500.0,0.00014493,2]
[393325270,1762475430157,500.0,0.00014493,2]
[393325271,1762475430289,500.0,0.00014493,2]
[393325272,1762475430327,500.0,0.00014493,2]
[393325273,1762475430362,500.0,0.00014493,2]
[393325274,1762475430399,500.0,0.00014493,2]
[393325275,1762475430438,364.24901879,0.00014493,2]
[393325276,1762475430478,500.0,0.00014493,2]
[393325277,1762475430515,500.0,0.00014493,2]
[393325278,1762475430554,500.0,0.00014493,2]
[393325279,1762475430591,500.0,0.00014493,2]
[393325280,1762475430632,500.0,0.00014493,2]
[393325281,1762475430671,500.0,0.00014493,2]
[393325282,1762475430708,500.0,0.00014493,2]
[393325283,1762475430745,500.0,0.00014493,2]
[393325284,1762475430788,500.0,0.00014493,2]
[393325285,1762475430828,500.0,0.00014493,2]
[393325286,1762475430865,500.0,0.00014493,2]
[393325287,1762475430902,500.0,0.00014493,2]
[393325288,1762475430937,500.0,0.00014493,2]
[393325289,1762475430976,500.0,0.00014493,2]
[393325316,1762475438279,-250.0,0.00014494,2]
[393325323,1762475439979,-11684.96701262,0.00014494,2]
[393325324,1762475440013,-31455.51585997,0.00014494,2]
[393325325,1762475440023,-150.0,0.00014494,2]
[393325326,1762475440032,-371.73419116,0.00014494,2]
[393325327,1762475440041,-520.46213661,0.00014494,2]
[393325328,1762475440051,-500.0,0.00014494,2]
[393325329,1762475440060,-500.0,0.00014494,2]
[393325330,1762475440070,-500.0,0.00014494,2]
[393325331,1762475440079,-500.0,0.00014494,2]
[393325332,1762475440088,-500.0,0.00014494,2]
[393325333,1762475440098,-500.0,0.00014494,2]
[393325334,1762475440107,-500.0,0.00014494,2]
[393325335,1762475440116,-500.0,0.00014494,2]
[393325336,1762475440125,-500.0,0.00014494,2]
[393325337,1762475440134,-500.0,0.00014494,2]
[393325338,1762475440144,-500.0,0.00014494,2]
[393325339,1762475440153,-500.0,0.00014494,2]
[393325340,1762475440163,-500.0,0.00014494,2]
[393325341,1762475440172,-151.0,0.00014672,2]
[393325342,1762475440182,-161.9324311,0.00014708,2]
[393325343,1762475440191,-999.0,0.00014764,2]
[393325344,1762475440201,-164.4189535,0.00014785,2]
[393325345,1762475440211,-590.28629629,0.000149,2]
[393325346,1762475440221,-457.88724582,0.00016934,2]
[393325347,1762475440231,-7580.09691312,0.00017,2]
[393325348,1762475440241,-380.84585438,0.00017459,2]
[393325349,1762475440252,-2875.05932025,0.000179,2]
[393325350,1762475440262,-2875.05932025,0.00017968,2]
[393325351,1762475440272,-500.0,0.00017973,2]
[393325352,1762475440283,-500.0,0.00017973,2]
[393325353,1762475440295,-47645.11939187,0.0001799,2]
[393325354,1762475440310,-2821.05021998,0.0001799,2]
[393325615,1762475443226,-21325.52500519,0.0001799,2]
[393325632,1762475446461,-8521.14388463,0.0001799,2]
[393325662,1762475494313,188.19444142,0.00014493,2]
[393325664,1762475496898,500.0,0.00014493,2]
[393325665,1762475496942,500.0,0.00014493,2]
[393325666,1762475496980,500.0,0.00014493,2]
[393325667,1762475497015,500.0,0.00014493,2]
[393325668,1762475497049,500.0,0.00014493,2]
[393325669,1762475497083,500.0,0.00014493,2]
[393325670,1762475497115,500.0,0.00014493,2]
[393325671,1762475497148,500.0,0.00014493,2]
[393325672,1762475497185,500.0,0.00014493,2]
[393325673,1762475497219,500.0,0.00014493,2]
[393325674,1762475497264,500.0,0.00014493,2]
[393325675,1762475497302,500.0,0.00014493,2]
[393325676,1762475497342,166.92169902,0.00014493,2]
[393325677,1762475497379,500.0,0.00014493,2]
[393325678,1762475497425,500.0,0.00014493,2]
[393325679,1762475497461,500.0,0.00014493,2]
[393325680,1762475497496,500.0,0.00014493,2]
[393325681,1762475497532,500.0,0.00014493,2]
[393325682,1762475497570,500.0,0.00014493,2]
[393325683,1762475497605,500.0,0.00014493,2]
[393325684,1762475497640,500.0,0.00014493,2]
[393325685,1762475497675,500.0,0.00014493,2]
[393325686,1762475497723,500.0,0.00014493,2]
[393325687,1762475497758,500.0,0.00014493,2]
[393325688,1762475497793,500.0,0.00014493,2]
[393325689,1762475497828,500.0,0.00014493,2]
[393325690,1762475497884,500.0,0.00014493,2]
[393325691,1762475497919,500.0,0.00014493,2]
[393325692,1762475497954,500.0,0.00014493,2]
[393325694,1762475507626,500.0,0.00014493,2]
[393325695,1762475507669,500.0,0.00014493,2]
[393325696,1762475507728,500.0,0.00014493,2]
[393325697,1762475507781,500.0,0.00014493,2]
[393325698,1762475507844,500.0,0.00014493,2]
[393325699,1762475508003,200.0,0.00014493,2]
[393325740,1762475599233,249.0,0.000144,5]
[393325804,1762475830105,500.0,0.00037207,60]
[393325805,1762475830481,267.71530666,0.00037207,60]
[393325811,1762475954858,895.37070436,0.000185,3]
[393325812,1762475993666,500.0,0.00037207,60]
[393325813,1762475994063,500.0,0.00037207,60]
[393325814,1762475994534,500.0,0.00037207,60]
[393325815,1762475995222,500.0,0.00037207,60]
[393325816,1762475995613,500.0,0.00037207,60]
[393325817,1762475996038,500.0,0.00037207,60]
[393325818,1762475996414,500.0,0.00037207,60]
[393325819,1762475996798,500.0,0.00037207,60]
[393325820,1762475997228,500.0,0.00037207,60]
[393325821,1762475997614,500.0,0.00037207,60]
[393325822,1762475997996,500.0,0.00037207,60]
[393325823,1762475998386,500.0,0.00037207,60]
[393325824,1762475998930,500.0,0.00037207,60]
[393325829,1762475999359,500.0,0.00037207,60]
[393325831,1762475999742,500.0,0.00037207,60]
[393325832,1762476000116,500.0,0.00037207,120]
[393325833,1762476000506,554.05,0.00037207,120]
[393325895,1762476632065,-366.56418605,0.00014931,2]
[393325898,1762476632076,-406.252548,0.00014931,2]
[393325900,1762476632086,-155.68430844,0.00014931,2]
[393325901,1762476632096,-704.61990251,0.00016355,2]
[393326058,1762476637995,-1925.96109389,0.00016355,2]
[393326059,1762476638005,-245.976221,0.00016499,2]
[393326060,1762476638015,-1286.6209353,0.00016607,2]
[393326061,1762476638025,-374.07661474,0.00016776,2]
[393326062,1762476638034,-68.14732507,0.00016776,2]
[393326063,1762476638047,-617.37521282,0.00016776,2]
[393326065,1762476638057,-500.0,0.00017406,2]
[393326066,1762476638066,-500.0,0.00017406,2]
[393326067,1762476638076,-500.0,0.00017406,2]
[393326068,1762476638086,-500.0,0.00017406,2]
[393326069,1762476638096,-486.69216991,0.00017406,2]
[393326070,1762476638105,-500.33997138,0.00017406,2]
[393326071,1762476638114,-500.0,0.00017406,2]
[393326072,1762476638125,-500.0,0.00017406,2]
[393326073,1762476638135,-500.0,0.00017406,2]
[393326074,1762476638144,-500.0,0.00017406,2]
[393326075,1762476638154,-500.0,0.00017406,2]
[393326076,1762476638163,-517.46264589,0.00017406,2]
[393326077,1762476638175,-18.96225599,0.00017406,2]
[393326078,1762476638185,-500.0,0.00017406,2]
[393326079,1762476638195,-500.0,0.00017406,2]
[393326080,1762476638206,-335.60690407,0.00017406,2]
[393326081,1762476638215,-500.0,0.00017406,2]
[393326082,1762476638224,-500.0,0.00017406,2]
[393326083,1762476638234,-500.0,0.00017406,2]
[393326084,1762476638244,-500.0,0.00017406,2]
[393326085,1762476638253,-500.0,0.00017406,2]
[393326086,1762476638263,-500.0,0.00017406,2]
[393326087,1762476638283,-500.0,0.00017406,2]
[393326088,1762476638295,-500.0,0.00017406,2]
[393326089,1762476638305,-500.0,0.00017406,2]
[393326090,1762476638315,-500.0,0.00017406,2]
[393326091,1762476638325,-500.0,0.00017406,2]
[393326092,1762476638335,-500.0,0.00017406,2]
[393326093,1762476638345,-500.0,0.00017406,2]
[393326094,1762476638355,-500.0,0.00017406,2]
[393326095,1762476638365,-500.0,0.00017406,2]
[393326096,1762476638375,-132.90410894,0.00017406,2]
[393326097,1762476638388,-81.27602675,0.00017406,2]
[393326098,1762476638398,-500.0,0.00017406,2]
[393326099,1762476638408,-500.0,0.00017406,2]
[393326100,1762476638418,-500.0,0.00017406,2]
[393326101,1762476638428,-500.0,0.00017406,2]
[393326102,1762476638438,-500.0,0.00017406,2]
[393326103,1762476638447,-500.0,0.00017406,2]
[393326104,1762476638459,-57.36221272,0.00017406,2]
[393326232,1762476666712,493.386517,0.00037207,60]
[393326234,1762476678162,655.164785,0.00013699,2]
[393326235,1762476717346,150.0,0.000137,2]
[393326236,1762476728300,150.0,0.000137,2]